[Event "*** Titled Tuesday Blitz"]
[Site "Chess.com"]
[Date "2019.01.01"]
[Round "3"]
[White "Mikhail_Golubev"]
[Black "Jospem"]
[Result "0-1"]
[WhiteElo "2499"]
[BlackElo "2787"]
[TimeControl "180+2"]
[EndTime "13:34:40 PST"]
[Termination "Jospem won by resignation"]

1. e4 {[%clk 0:03:01.9]} 1... c5 {[%clk 0:03:00.8]} 2. Nf3 {[%clk 0:03:02.2]}
2... d6 {[%clk 0:03:01.9]} 3. d4 {[%clk 0:03:03.2]} 3... cxd4 {[%clk 0:03:03.8]}
4. Nxd4 {[%clk 0:03:04.1]} 4... Nf6 {[%clk 0:03:04.4]} 5. Nc3 {[%clk 0:03:04.8]}
5... a6 {[%clk 0:03:05.4]} 6. Bc4 {[%clk 0:03:04.6]} 6... e6 {[%clk 0:03:05.7]}
7. O-O {[%clk 0:03:05.1]} 7... b5 {[%clk 0:03:05.9]} 8. Bb3 {[%clk 0:03:05.9]}
8... Be7 {[%clk 0:03:07.2]} 9. Qf3 {[%clk 0:03:06.5]} 9... Qb6 {[%clk
0:03:08.5]} 10. Be3 {[%clk 0:03:06.4]} 10... Qb7 {[%clk 0:03:10]} 11. Qg3 {[%clk
0:03:07.4]} 11... O-O {[%clk 0:03:11.3]} 12. Bh6 {[%clk 0:03:06.9]} 12... Ne8
{[%clk 0:03:12.8]} 13. Rad1 {[%clk 0:03:07.7]} 13... Bd7 {[%clk 0:03:12.5]} 14.
f4 {[%clk 0:03:07]} 14... Nc6 {[%clk 0:03:12.6]} 15. f5 {[%clk 0:03:05.9]} 15...
Nxd4 {[%clk 0:03:12.9]} 16. Rxd4 {[%clk 0:03:06.2]} 16... Bf6 {[%clk 0:03:01.1]}
17. Rd2 {[%clk 0:02:58.7]} 17... Kh8 {[%clk 0:02:50.9]} 18. fxe6 {[%clk
0:02:47.9]} 18... fxe6 {[%clk 0:02:47.4]} 19. Be3 {[%clk 0:02:03.1]} 19... a5
{[%clk 0:02:37.8]} 20. Qh3 {[%clk 0:01:21.4]} 20... b4 {[%clk 0:02:27.1]} 21.
Na4 {[%clk 0:01:17]} 21... Bxa4 {[%clk 0:02:09.2]} 22. Bxa4 {[%clk 0:01:17.4]}
22... Qxe4 {[%clk 0:02:08.8]} 23. Bd7 {[%clk 0:00:37.4]} 23... Nc7 {[%clk
0:02:05]} 24. Rxd6 {[%clk 0:00:29.9]} 24... Rad8 {[%clk 0:01:56.5]} 25. Bxe6
{[%clk 0:00:23.3]} 25... Rxd6 {[%clk 0:01:52.1]} 26. Bf5 {[%clk 0:00:23.4]}
26... Qh4 {[%clk 0:01:53.2]} 27. Qxh4 {[%clk 0:00:17.1]} 27... Bxh4 {[%clk
0:01:55.1]} 28. Bc5 {[%clk 0:00:18.4]} 28... Be7 {[%clk 0:01:54.1]} 29. Bxd6
{[%clk 0:00:18.2]} 29... Bxd6 {[%clk 0:01:56]} 30. Rd1 {[%clk 0:00:12.3]} 30...
Bc5+ {[%clk 0:01:56]} 0-1

[Event "*** Titled Tuesday Blitz"]
[Site "Chess.com"]
[Date "2019.01.01"]
[Round "3"]
[White "DryCounty"]
[Black "Parhamov"]
[Result "1-0"]
[WhiteElo "2729"]
[BlackElo "2899"]
[TimeControl "180+2"]
[EndTime "13:34:46 PST"]
[Termination "DryCounty won by resignation"]

1. Nf3 {[%clk 0:03:01.9]} 1... Nf6 {[%clk 0:03:00.2]} 2. c4 {[%clk 0:03:02.3]}
2... e6 {[%clk 0:02:52.4]} 3. g3 {[%clk 0:03:02.2]} 3... a6 {[%clk 0:02:53.2]}
4. Bg2 {[%clk 0:03:02.4]} 4... b5 {[%clk 0:02:54.3]} 5. b3 {[%clk 0:03:03.7]}
5... Bb7 {[%clk 0:02:55.1]} 6. Nc3 {[%clk 0:03:02.1]} 6... b4 {[%clk 0:02:50.4]}
7. Na4 {[%clk 0:03:02.7]} 7... d5 {[%clk 0:02:50.8]} 8. O-O {[%clk 0:02:59.1]}
8... Nbd7 {[%clk 0:02:51.6]} 9. d4 {[%clk 0:02:55.9]} 9... Be7 {[%clk 0:02:45]}
10. c5 {[%clk 0:02:55.1]} 10... O-O {[%clk 0:02:43.8]} 11. Bf4 {[%clk
0:02:52.6]} 11... Ne4 {[%clk 0:02:42.1]} 12. Nd2 {[%clk 0:02:50]} 12... g5
{[%clk 0:02:38.9]} 13. Be3 {[%clk 0:02:41.9]} 13... f5 {[%clk 0:02:38.6]} 14. f3
{[%clk 0:02:40.9]} 14... Nc3 {[%clk 0:02:36.3]} 15. Nxc3 {[%clk 0:02:40.2]}
15... bxc3 {[%clk 0:02:37.4]} 16. Nb1 {[%clk 0:02:41.8]} 16... e5 {[%clk
0:02:19.8]} 17. Nxc3 {[%clk 0:02:37.2]} 17... Nxc5 {[%clk 0:02:09.5]} 18. dxe5
{[%clk 0:02:30.1]} 18... f4 {[%clk 0:02:09.7]} 19. Bf2 {[%clk 0:02:23.4]} 19...
Ne6 {[%clk 0:02:09.8]} 20. Bh3 {[%clk 0:02:18.1]} 20... Ng7 {[%clk 0:02:10.1]}
21. Rc1 {[%clk 0:02:02.9]} 21... h5 {[%clk 0:02:06.2]} 22. gxf4 {[%clk
0:02:00.9]} 22... Rxf4 {[%clk 0:02:04.4]} 23. Na4 {[%clk 0:01:49.7]} 23... d4
{[%clk 0:01:57.7]} 24. Nc5 {[%clk 0:01:46]} 24... Bxc5 {[%clk 0:01:56.1]} 25.
Rxc5 {[%clk 0:01:46.2]} 25... g4 {[%clk 0:01:56]} 26. Bg3 {[%clk 0:01:39.5]}
26... Rf8 {[%clk 0:01:28.4]} 27. fxg4 {[%clk 0:01:39.3]} 27... Qg5 {[%clk
0:01:28.5]} 28. Qc1 {[%clk 0:01:30.9]} 28... Qg6 {[%clk 0:01:29.6]} 29. Rxc7
{[%clk 0:01:21.1]} 29... Bd5 {[%clk 0:01:24.1]} 30. Rd7 {[%clk 0:01:11.3]} 30...
Rxf1+ {[%clk 0:01:22.7]} 31. Bxf1 {[%clk 0:01:11.2]} 31... Be6 {[%clk 0:01:15]}
32. Rd6 {[%clk 0:01:08.6]} 32... Rc8 {[%clk 0:01:12.1]} 33. Qxc8+ {[%clk
0:01:07.3]} 1-0

[Event "*** Titled Tuesday Blitz"]
[Site "Chess.com"]
[Date "2019.01.01"]
[Round "3"]
[White "mishanick"]
[Black "MerdeNoms943"]
[Result "1-0"]
[WhiteElo "2989"]
[BlackElo "2256"]
[TimeControl "180+2"]
[EndTime "13:34:52 PST"]
[Termination "mishanick won by resignation"]

1. e4 {[%clk 0:03:01.3]} 1... e5 {[%clk 0:02:54.3]} 2. Nf3 {[%clk 0:03:01.7]}
2... Nc6 {[%clk 0:02:54.9]} 3. Bb5 {[%clk 0:03:02.7]} 3... a6 {[%clk 0:02:56.1]}
4. Ba4 {[%clk 0:03:04]} 4... Nf6 {[%clk 0:02:57.7]} 5. O-O {[%clk 0:03:05.3]}
5... Nxe4 {[%clk 0:02:59.2]} 6. d4 {[%clk 0:03:03.7]} 6... b5 {[%clk 0:03:00.8]}
7. Bb3 {[%clk 0:03:04.6]} 7... d5 {[%clk 0:03:02.4]} 8. dxe5 {[%clk 0:03:05.6]}
8... Be6 {[%clk 0:03:04.1]} 9. Nbd2 {[%clk 0:03:05.8]} 9... Be7 {[%clk
0:03:05.2]} 10. Nxe4 {[%clk 0:03:01.3]} 10... dxe4 {[%clk 0:03:05.9]} 11. Bxe6
{[%clk 0:03:02.9]} 11... Qxd1 {[%clk 0:03:02.5]} 12. Rxd1 {[%clk 0:03:04.8]}
12... fxe6 {[%clk 0:03:01.7]} 13. Nd2 {[%clk 0:03:05.8]} 13... Rd8 {[%clk
0:02:58]} 14. Kf1 {[%clk 0:02:53.6]} 14... Nxe5 {[%clk 0:02:54.7]} 15. Ke2
{[%clk 0:02:52.7]} 15... e3 {[%clk 0:02:46.1]} 16. fxe3 {[%clk 0:02:52.4]} 16...
O-O {[%clk 0:02:40.8]} 17. b3 {[%clk 0:02:43.6]} 17... Ng4 {[%clk 0:02:28.2]}
18. Nf3 {[%clk 0:02:44.4]} 18... Rxd1 {[%clk 0:02:19.5]} 19. Kxd1 {[%clk
0:02:46.3]} 19... Bf6 {[%clk 0:02:19.5]} 20. Rb1 {[%clk 0:02:45]} 20... Nf2+
{[%clk 0:01:59.6]} 21. Ke2 {[%clk 0:02:45.7]} 21... Ne4 {[%clk 0:02:01]} 22. Bd2
{[%clk 0:02:42]} 22... Rd8 {[%clk 0:02:01.1]} 23. Ba5 {[%clk 0:02:36.5]} 23...
Rd7 {[%clk 0:01:54.9]} 24. Nd2 {[%clk 0:02:14.3]} 24... Nxd2 {[%clk 0:01:23.3]}
25. Bxd2 {[%clk 0:02:16.2]} 25... Be5 {[%clk 0:01:24.3]} 26. h3 {[%clk
0:02:17.2]} 26... c5 {[%clk 0:01:25.9]} 27. c4 {[%clk 0:02:16.9]} 27... Kf7
{[%clk 0:01:14.6]} 28. cxb5 {[%clk 0:02:09.6]} 28... axb5 {[%clk 0:01:16.5]} 29.
Rc1 {[%clk 0:02:10]} 29... Rc7 {[%clk 0:01:10.3]} 30. Ba5 {[%clk 0:02:04.6]}
30... Rc6 {[%clk 0:01:10]} 31. a4 {[%clk 0:01:58.9]} 31... bxa4 {[%clk
0:01:09.7]} 32. bxa4 {[%clk 0:02:00.8]} 32... Bd6 {[%clk 0:01:05.8]} 33. Rc4
{[%clk 0:02:00.7]} 33... g6 {[%clk 0:01:01.1]} 34. Bc3 {[%clk 0:02:01.8]} 34...
h5 {[%clk 0:01:00.3]} 35. a5 {[%clk 0:02:02.9]} 35... Ra6 {[%clk 0:01:00.4]} 36.
Ra4 {[%clk 0:02:03.9]} 36... Ke7 {[%clk 0:01:00.9]} 37. Kd3 {[%clk 0:02:05.5]}
37... Kd7 {[%clk 0:01:02.3]} 38. Kc4 {[%clk 0:02:07.1]} 38... Kc6 {[%clk
0:01:03.8]} 39. Ra1 {[%clk 0:02:07.3]} 39... Bc7 {[%clk 0:01:04]} 40. Rf1 {[%clk
0:02:05.1]} 40... Bxa5 {[%clk 0:00:58.9]} 41. Ra1 {[%clk 0:02:05.8]} 41... Kb6
{[%clk 0:00:58.9]} 42. Rxa5 {[%clk 0:02:05.6]} 42... Rxa5 {[%clk 0:01:00.3]} 43.
Bxa5+ {[%clk 0:02:07.5]} 43... Kxa5 {[%clk 0:01:01.6]} 44. Kxc5 {[%clk
0:02:09.2]} 44... Ka4 {[%clk 0:00:57.6]} 45. e4 {[%clk 0:02:08.8]} 45... Kb3
{[%clk 0:00:58.5]} 46. e5 {[%clk 0:02:09.7]} 46... Kc3 {[%clk 0:00:59.4]} 47.
Kd6 {[%clk 0:02:11.4]} 1-0

[Event "*** Titled Tuesday Blitz"]
[Site "Chess.com"]
[Date "2019.01.01"]
[Round "3"]
[White "pandamaster3000"]
[Black "ChessMavenYeti"]
[Result "1/2-1/2"]
[WhiteElo "2212"]
[BlackElo "2094"]
[TimeControl "180+2"]
[EndTime "13:34:59 PST"]
[Termination "Game drawn by repetition"]

1. e4 {[%clk 0:03:01.9]} 1... e6 {[%clk 0:02:59.6]} 2. d4 {[%clk 0:03:02.4]}
2... d5 {[%clk 0:03:01.1]} 3. exd5 {[%clk 0:03:01.1]} 3... exd5 {[%clk
0:03:01.9]} 4. Nf3 {[%clk 0:03:02.6]} 4... Bd6 {[%clk 0:03:00.1]} 5. c4 {[%clk
0:03:03.2]} 5... dxc4 {[%clk 0:03:00.3]} 6. Bxc4 {[%clk 0:03:05.1]} 6... Nf6
{[%clk 0:03:00.3]} 7. O-O {[%clk 0:03:02.7]} 7... O-O {[%clk 0:03:01.5]} 8. Nc3
{[%clk 0:02:59.4]} 8... Nc6 {[%clk 0:03:01.4]} 9. Bg5 {[%clk 0:03:00.2]} 9... h6
{[%clk 0:03:01.6]} 10. Bh4 {[%clk 0:03:00.6]} 10... Bg4 {[%clk 0:02:49.7]} 11.
Be2 {[%clk 0:02:20]} 11... a6 {[%clk 0:02:35.3]} 12. h3 {[%clk 0:02:15.1]} 12...
Bh5 {[%clk 0:02:31.2]} 13. d5 {[%clk 0:01:40]} 13... Nb8 {[%clk 0:02:19.4]} 14.
Nd4 {[%clk 0:01:34]} 14... Bxe2 {[%clk 0:02:17.3]} 15. Qxe2 {[%clk 0:01:35.9]}
15... Re8 {[%clk 0:02:15.9]} 16. Qf3 {[%clk 0:01:36.3]} 16... Nbd7 {[%clk
0:02:16.8]} 17. Nf5 {[%clk 0:01:33.3]} 17... Bf8 {[%clk 0:02:15.7]} 18. Rfe1
{[%clk 0:01:30.3]} 18... Ne5 {[%clk 0:02:11.9]} 19. Rxe5 {[%clk 0:01:06.2]}
19... Rxe5 {[%clk 0:02:10.4]} 20. Nxh6+ {[%clk 0:01:07.3]} 20... gxh6 {[%clk
0:02:03]} 21. Bxf6 {[%clk 0:01:07.8]} 21... Qd6 {[%clk 0:01:58]} 22. Qg3+ {[%clk
0:00:46.1]} 22... Rg5 {[%clk 0:01:58.4]} 23. Qxd6 {[%clk 0:00:45.4]} 23... Bxd6
{[%clk 0:01:57.7]} 24. Bxg5 {[%clk 0:00:46.2]} 24... hxg5 {[%clk 0:01:58.9]} 25.
Re1 {[%clk 0:00:46.4]} 25... Kf8 {[%clk 0:01:56.9]} 26. Ne4 {[%clk 0:00:45.9]}
26... Be7 {[%clk 0:01:50.6]} 27. Ng3 {[%clk 0:00:47]} 27... Rd8 {[%clk
0:01:50.1]} 28. Rc1 {[%clk 0:00:44.6]} 28... Rxd5 {[%clk 0:01:44.1]} 29. Rxc7
{[%clk 0:00:45.6]} 29... Rd1+ {[%clk 0:01:45.1]} 30. Kh2 {[%clk 0:00:46.4]}
30... Rd2 {[%clk 0:01:46.3]} 31. Rxb7 {[%clk 0:00:45.6]} 31... Rxf2 {[%clk
0:01:47.1]} 32. Ne4 {[%clk 0:00:45.7]} 32... Re2 {[%clk 0:01:40.5]} 33. Nc3
{[%clk 0:00:44.3]} 33... Bd6+ {[%clk 0:01:32.6]} 34. Kg1 {[%clk 0:00:43.6]}
34... Bc5+ {[%clk 0:01:32.2]} 35. Kh2 {[%clk 0:00:39.6]} 35... Bd6+ {[%clk
0:01:32.3]} 36. Kg1 {[%clk 0:00:40.9]} 36... Bc5+ {[%clk 0:01:32.7]} 37. Kh2
{[%clk 0:00:34.5]} 37... Bd6+ {[%clk 0:01:33.5]} 38. Kg1 {[%clk 0:00:35.7]}
1/2-1/2

[Event "*** Titled Tuesday Blitz"]
[Site "Chess.com"]
[Date "2019.01.01"]
[Round "3"]
[White "Bryakin_Mikhail"]
[Black "Firouzja2003"]
[Result "0-1"]
[WhiteElo "2686"]
[BlackElo "2997"]
[TimeControl "180+2"]
[EndTime "13:35:00 PST"]
[Termination "Firouzja2003 won by checkmate"]

1. d4 {[%clk 0:03:00.5]} 1... d5 {[%clk 0:02:59]} 2. Nf3 {[%clk 0:03:00.9]} 2...
Nf6 {[%clk 0:02:59.5]} 3. c4 {[%clk 0:03:01.8]} 3... e6 {[%clk 0:02:58.2]} 4. g3
{[%clk 0:02:58.7]} 4... dxc4 {[%clk 0:02:58.9]} 5. Bg2 {[%clk 0:02:59.6]} 5...
Bd7 {[%clk 0:03:00.8]} 6. Ne5 {[%clk 0:02:59.9]} 6... Bc6 {[%clk 0:03:01.5]} 7.
Nxc6 {[%clk 0:02:58.8]} 7... Nxc6 {[%clk 0:03:03.4]} 8. e3 {[%clk 0:03:00.1]}
8... Qd7 {[%clk 0:03:05]} 9. O-O {[%clk 0:02:55]} 9... O-O-O {[%clk 0:03:06.4]}
10. Qe2 {[%clk 0:02:53.1]} 10... h5 {[%clk 0:03:04.5]} 11. Qxc4 {[%clk
0:02:46.1]} 11... Nd5 {[%clk 0:03:03.4]} 12. b4 {[%clk 0:02:21.3]} 12... Bxb4
{[%clk 0:02:59.1]} 13. Bd2 {[%clk 0:02:20.2]} 13... Bxd2 {[%clk 0:02:41.4]} 14.
Nxd2 {[%clk 0:02:22.1]} 14... e5 {[%clk 0:02:43.3]} 15. Nb3 {[%clk 0:01:37]}
15... exd4 {[%clk 0:02:36.6]} 16. Nxd4 {[%clk 0:01:33.9]} 16... Nb6 {[%clk
0:02:29.9]} 17. Qb3 {[%clk 0:01:29.5]} 17... Nxd4 {[%clk 0:02:29.8]} 18. exd4
{[%clk 0:01:31.4]} 18... Qxd4 {[%clk 0:02:26.6]} 19. Qxf7 {[%clk 0:01:27.1]}
19... h4 {[%clk 0:02:25.2]} 20. Qf3 {[%clk 0:01:18.8]} 20... c6 {[%clk
0:02:26.1]} 21. Rad1 {[%clk 0:01:19.2]} 21... Qf6 {[%clk 0:02:26.3]} 22. Qg4+
{[%clk 0:01:17]} 22... Kb8 {[%clk 0:02:27.2]} 23. a4 {[%clk 0:01:11]} 23... a5
{[%clk 0:02:24.6]} 24. Rb1 {[%clk 0:01:10.6]} 24... Ka7 {[%clk 0:02:25.6]} 25.
Qe2 {[%clk 0:00:45.4]} 25... hxg3 {[%clk 0:02:23.9]} 26. hxg3 {[%clk 0:00:41.9]}
26... Qh6 {[%clk 0:02:21.8]} 27. Rfd1 {[%clk 0:00:39.5]} 27... Rxd1+ {[%clk
0:02:22.5]} 28. Qxd1 {[%clk 0:00:37.8]} 28... Qf6 {[%clk 0:02:18.7]} 29. Qb3
{[%clk 0:00:37.9]} 29... Qd4 {[%clk 0:02:19.7]} 30. Qf7 {[%clk 0:00:30.2]} 30...
Rh6 {[%clk 0:02:13]} 31. Bf3 {[%clk 0:00:24.8]} 31... g5 {[%clk 0:01:58.9]} 32.
Rb5 {[%clk 0:00:18.3]} 32... Qa1+ {[%clk 0:01:55.1]} 33. Kg2 {[%clk 0:00:07.5]}
33... Qh1# {[%clk 0:01:57]} 0-1

[Event "*** Titled Tuesday Blitz"]
[Site "Chess.com"]
[Date "2019.01.01"]
[Round "3"]
[White "Qingdom"]
[Black "Babas"]
[Result "0-1"]
[WhiteElo "2170"]
[BlackElo "2263"]
[TimeControl "180+2"]
[EndTime "13:35:03 PST"]
[Termination "Babas won by resignation"]

1. d4 {[%clk 0:03:01.9]} 1... Nf6 {[%clk 0:02:59.5]} 2. Bg5 {[%clk 0:03:02.6]}
2... c5 {[%clk 0:02:59.1]} 3. d5 {[%clk 0:03:01.8]} 3... Ne4 {[%clk 0:02:54.7]}
4. Bf4 {[%clk 0:03:01.4]} 4... Qa5+ {[%clk 0:02:55]} 5. c3 {[%clk 0:03:01.4]}
5... e6 {[%clk 0:02:33.3]} 6. f3 {[%clk 0:02:59.8]} 6... Nf6 {[%clk 0:02:09.7]}
7. e4 {[%clk 0:03:00.4]} 7... d6 {[%clk 0:02:08.5]} 8. dxe6 {[%clk 0:02:56.3]}
8... Bxe6 {[%clk 0:02:08.7]} 9. Bxd6 {[%clk 0:02:56.8]} 9... Qb6 {[%clk
0:01:56.3]} 10. Bxf8 {[%clk 0:02:56.8]} 10... Rxf8 {[%clk 0:01:57.4]} 11. Qc2
{[%clk 0:02:42.8]} 11... Nc6 {[%clk 0:01:56.5]} 12. Nd2 {[%clk 0:02:40.6]} 12...
O-O-O {[%clk 0:01:57.2]} 13. Bc4 {[%clk 0:02:36.8]} 13... Ne5 {[%clk 0:01:55.9]}
14. Bxe6+ {[%clk 0:02:37.3]} 14... Qxe6 {[%clk 0:01:57.1]} 15. Nh3 {[%clk
0:02:10.2]} 15... Nd3+ {[%clk 0:01:56.3]} 16. Kf1 {[%clk 0:02:09.2]} 16... Qb6
{[%clk 0:01:32.5]} 17. b3 {[%clk 0:01:52.7]} 17... Qa6 {[%clk 0:01:21.6]} 18.
Kg1 {[%clk 0:01:32.5]} 18... g5 {[%clk 0:01:17.2]} 19. Nf2 {[%clk 0:01:33]}
19... g4 {[%clk 0:01:13.7]} 20. Nxd3 {[%clk 0:01:24.4]} 20... Rxd3 {[%clk
0:01:15.6]} 21. c4 {[%clk 0:01:24.3]} 21... Rfd8 {[%clk 0:01:15.1]} 22. Nf1
{[%clk 0:01:14]} 22... gxf3 {[%clk 0:01:14]} 23. gxf3 {[%clk 0:01:15]} 23... Nh5
{[%clk 0:01:09.9]} 24. h4 {[%clk 0:00:50.8]} 24... Qg6+ {[%clk 0:01:06]} 25. Kf2
{[%clk 0:00:48.3]} 25... Qf6 {[%clk 0:00:49.5]} 26. Rh3 {[%clk 0:00:46.4]} 26...
Qxa1 {[%clk 0:00:49.8]} 0-1

[Event "*** Titled Tuesday Blitz"]
[Site "Chess.com"]
[Date "2019.01.01"]
[Round "3"]
[White "BartoszSocko"]
[Black "kjzsdu"]
[Result "1-0"]
[WhiteElo "2661"]
[BlackElo "2530"]
[TimeControl "180+2"]
[EndTime "13:35:10 PST"]
[Termination "BartoszSocko won by resignation"]

1. d4 {[%clk 0:03:01.9]} 1... d5 {[%clk 0:03:00.6]} 2. Nf3 {[%clk 0:03:03.2]}
2... Nf6 {[%clk 0:03:01.9]} 3. g3 {[%clk 0:03:04.7]} 3... Bf5 {[%clk 0:03:01.4]}
4. Bg2 {[%clk 0:03:05.7]} 4... c6 {[%clk 0:03:02.8]} 5. O-O {[%clk 0:03:07.2]}
5... h6 {[%clk 0:03:03.9]} 6. b3 {[%clk 0:03:08.8]} 6... e6 {[%clk 0:03:05.1]}
7. c4 {[%clk 0:03:09.3]} 7... Bd6 {[%clk 0:03:06.1]} 8. Nc3 {[%clk 0:03:10.1]}
8... O-O {[%clk 0:03:07.4]} 9. Bb2 {[%clk 0:03:10.1]} 9... Nbd7 {[%clk
0:03:07.8]} 10. Nd2 {[%clk 0:03:03.2]} 10... Qe7 {[%clk 0:02:57.7]} 11. e4
{[%clk 0:03:03.9]} 11... dxe4 {[%clk 0:02:58.9]} 12. Ndxe4 {[%clk 0:03:05.3]}
12... Nxe4 {[%clk 0:02:58.4]} 13. Nxe4 {[%clk 0:03:07.2]} 13... Ba3 {[%clk
0:02:57.4]} 14. Bxa3 {[%clk 0:03:03.3]} 14... Qxa3 {[%clk 0:02:58.3]} 15. Qd2
{[%clk 0:02:57.2]} 15... Bxe4 {[%clk 0:02:58.6]} 16. Bxe4 {[%clk 0:02:57.8]}
16... Nf6 {[%clk 0:02:59.5]} 17. Bf3 {[%clk 0:02:58.3]} 17... Rad8 {[%clk
0:02:59.7]} 18. Rad1 {[%clk 0:02:58.4]} 18... Rd6 {[%clk 0:02:57.5]} 19. Qc3
{[%clk 0:02:36]} 19... Rfd8 {[%clk 0:02:54.5]} 20. Kg2 {[%clk 0:02:25.9]} 20...
c5 {[%clk 0:02:33.9]} 21. dxc5 {[%clk 0:02:26.2]} 21... Rxd1 {[%clk 0:02:34.2]}
22. Rxd1 {[%clk 0:02:28.1]} 22... Rxd1 {[%clk 0:02:34.5]} 23. Bxd1 {[%clk
0:02:30]} 23... Qxc5 {[%clk 0:02:15.9]} 24. Bf3 {[%clk 0:02:30.5]} 24... b5
{[%clk 0:02:11.8]} 25. Qa5 {[%clk 0:02:28.4]} 25... g5 {[%clk 0:01:53.9]} 26.
Qxb5 {[%clk 0:02:23.7]} 26... Qd4 {[%clk 0:01:53]} 27. h3 {[%clk 0:02:19.7]}
27... e5 {[%clk 0:01:48]} 28. Bd5 {[%clk 0:02:07.5]} 28... Kg7 {[%clk 0:01:21]}
29. Qb7 {[%clk 0:02:06.6]} 29... Nxd5 {[%clk 0:01:16.4]} 30. Qxd5 {[%clk
0:02:07.5]} 30... Qb2 {[%clk 0:00:37.2]} 31. c5 {[%clk 0:02:07.3]} 31... Qe2
{[%clk 0:00:30.5]} 32. c6 {[%clk 0:01:53.8]} 32... e4 {[%clk 0:00:31.4]} 33. c7
{[%clk 0:01:48.2]} 33... Qc2 {[%clk 0:00:29.1]} 34. Qc4 {[%clk 0:01:40.1]} 1-0

[Event "*** Titled Tuesday Blitz"]
[Site "Chess.com"]
[Date "2019.01.01"]
[Round "3"]
[White "Kostya_Nikologorskiy"]
[Black "2nd_life"]
[Result "0-1"]
[WhiteElo "2358"]
[BlackElo "2387"]
[TimeControl "180+2"]
[EndTime "13:35:16 PST"]
[Termination "2nd_life won by resignation"]

1. d4 {[%clk 0:03:01.9]} 1... Nf6 {[%clk 0:02:57.2]} 2. c4 {[%clk 0:03:02]} 2...
e6 {[%clk 0:02:58.1]} 3. g3 {[%clk 0:03:01.5]} 3... c5 {[%clk 0:02:58.2]} 4. Nf3
{[%clk 0:03:00]} 4... cxd4 {[%clk 0:02:58.5]} 5. Nxd4 {[%clk 0:03:01.9]} 5... d5
{[%clk 0:02:59.2]} 6. Nc3 {[%clk 0:02:59]} 6... e5 {[%clk 0:02:54.2]} 7. Nf3
{[%clk 0:02:35.3]} 7... d4 {[%clk 0:02:53.6]} 8. Nb1 {[%clk 0:02:34.5]} 8... Nc6
{[%clk 0:02:52.5]} 9. Bg2 {[%clk 0:02:33.1]} 9... Bb4+ {[%clk 0:02:42.4]} 10.
Bd2 {[%clk 0:02:30.8]} 10... a5 {[%clk 0:02:42.8]} 11. O-O {[%clk 0:02:30.9]}
11... O-O {[%clk 0:02:42.3]} 12. a3 {[%clk 0:02:30.1]} 12... Bc5 {[%clk
0:02:39.2]} 13. Bg5 {[%clk 0:02:18.7]} 13... h6 {[%clk 0:02:38.5]} 14. Bxf6
{[%clk 0:02:11]} 14... Qxf6 {[%clk 0:02:40.4]} 15. Nfd2 {[%clk 0:02:08]} 15...
Qe7 {[%clk 0:02:38.9]} 16. Nb3 {[%clk 0:02:03.4]} 16... Ba7 {[%clk 0:02:12.7]}
17. N1d2 {[%clk 0:01:53.9]} 17... f5 {[%clk 0:01:58.4]} 18. Kh1 {[%clk
0:01:38.3]} 18... e4 {[%clk 0:01:56.3]} 19. f3 {[%clk 0:01:34.3]} 19... e3
{[%clk 0:01:49.8]} 20. Nb1 {[%clk 0:01:35]} 20... f4 {[%clk 0:01:47.1]} 21. g4
{[%clk 0:01:25.9]} 21... h5 {[%clk 0:01:47.1]} 22. gxh5 {[%clk 0:01:23.1]} 22...
Qh4 {[%clk 0:01:39.8]} 23. c5 {[%clk 0:01:10.8]} 23... Rf5 {[%clk 0:01:34.4]}
24. Qe1 {[%clk 0:01:03.8]} 24... Qxh5 {[%clk 0:01:26.7]} 25. Nxa5 {[%clk
0:00:47.4]} 25... Rxc5 {[%clk 0:01:14]} 26. Nxc6 {[%clk 0:00:41.8]} 26... Rxc6
{[%clk 0:01:15.1]} 27. a4 {[%clk 0:00:41.5]} 27... Rh6 {[%clk 0:01:12.6]} 28. h4
{[%clk 0:00:42.5]} 28... d3 {[%clk 0:01:05.8]} 29. exd3 {[%clk 0:00:34.7]} 29...
e2 {[%clk 0:01:06.2]} 30. Rg1 {[%clk 0:00:32.5]} 30... Qxh4+ {[%clk 0:01:04.5]}
0-1

[Event "*** Titled Tuesday Blitz"]
[Site "Chess.com"]
[Date "2019.01.01"]
[Round "3"]
[White "BillCoe"]
[Black "julinha97"]
[Result "0-1"]
[WhiteElo "1997"]
[BlackElo "2119"]
[TimeControl "180+2"]
[EndTime "13:35:17 PST"]
[Termination "julinha97 won by resignation"]

1. e4 {[%clk 0:03:01.9]} 1... c5 {[%clk 0:03:00.4]} 2. Nf3 {[%clk 0:03:02.9]}
2... d6 {[%clk 0:03:01.5]} 3. d4 {[%clk 0:03:04.3]} 3... cxd4 {[%clk 0:03:03.4]}
4. Nxd4 {[%clk 0:03:05.5]} 4... Nf6 {[%clk 0:03:05]} 5. Nc3 {[%clk 0:03:05.2]}
5... g6 {[%clk 0:03:06.6]} 6. f3 {[%clk 0:03:05.1]} 6... Bg7 {[%clk 0:03:06.5]}
7. Be3 {[%clk 0:03:06.4]} 7... O-O {[%clk 0:03:06.3]} 8. Qd2 {[%clk 0:03:07.6]}
8... Nc6 {[%clk 0:03:08]} 9. O-O-O {[%clk 0:03:07.8]} 9... d5 {[%clk 0:03:09.3]}
10. Kb1 {[%clk 0:03:07.5]} 10... Rb8 {[%clk 0:03:09.3]} 11. g4 {[%clk
0:02:56.4]} 11... e5 {[%clk 0:02:41.3]} 12. exd5 {[%clk 0:02:32.7]} 12... Nxd4
{[%clk 0:02:28.4]} 13. Bxd4 {[%clk 0:02:19.3]} 13... exd4 {[%clk 0:02:29.4]} 14.
Qxd4 {[%clk 0:02:19.9]} 14... Nxg4 {[%clk 0:02:27.1]} 15. Qc5 {[%clk 0:02:07.2]}
15... b6 {[%clk 0:02:22.8]} 16. Qg1 {[%clk 0:01:57.5]} 16... Ne5 {[%clk
0:02:03.8]} 17. f4 {[%clk 0:01:50.6]} 17... Ng4 {[%clk 0:02:02.4]} 18. h3 {[%clk
0:01:44.5]} 18... Nf6 {[%clk 0:02:02.6]} 19. d6 {[%clk 0:01:41.9]} 19... Bf5
{[%clk 0:02:00.7]} 20. Bd3 {[%clk 0:01:37.7]} 20... Bxd3 {[%clk 0:02:00.3]} 21.
Rxd3 {[%clk 0:01:39.6]} 21... Qd7 {[%clk 0:01:57]} 22. Qf2 {[%clk 0:01:34.8]}
22... b5 {[%clk 0:01:55.6]} 23. a3 {[%clk 0:01:21.7]} 23... a5 {[%clk
0:01:56.2]} 24. Rhd1 {[%clk 0:01:12.3]} 24... b4 {[%clk 0:01:56.3]} 25. axb4
{[%clk 0:01:13]} 25... axb4 {[%clk 0:01:58.2]} 26. Ne2 {[%clk 0:01:07]} 26...
Ne4 {[%clk 0:01:58.5]} 27. Qf3 {[%clk 0:01:02]} 27... Nc3+ {[%clk 0:01:52.6]}
28. Nxc3 {[%clk 0:01:02.3]} 28... bxc3 {[%clk 0:01:53.5]} 29. b3 {[%clk
0:01:03.4]} 29... Qa7 {[%clk 0:01:47.1]} 30. d7 {[%clk 0:00:51.8]} 30... Qa3
{[%clk 0:01:44.5]} 31. Rxc3 {[%clk 0:00:52.6]} 31... Bxc3 {[%clk 0:01:43.9]} 32.
Qxc3 {[%clk 0:00:52.9]} 32... Ra8 {[%clk 0:01:39.3]} 33. f5 {[%clk 0:00:38.4]}
33... Rfd8 {[%clk 0:01:34.2]} 34. fxg6 {[%clk 0:00:33.4]} 34... Qa2+ {[%clk
0:01:34.3]} 35. Kc1 {[%clk 0:00:28.5]} 35... Qa1+ {[%clk 0:01:35.5]} 36. Qxa1
{[%clk 0:00:28.8]} 36... Rxa1+ {[%clk 0:01:37.4]} 37. Kb2 {[%clk 0:00:27.8]}
37... Rxd1 {[%clk 0:01:37.6]} 38. gxh7+ {[%clk 0:00:29.7]} 38... Kxh7 {[%clk
0:01:38]} 0-1